{"text_format":"1","workbook":"xlsx","n_sheets":1,"sheets":["Trigonometry"],"not_rendered":{"charts":0,"images":0,"macros":1,"external_links":4,"defined_names":22,"comments":0,"pivot_tables":0},"unopened":[],"bounds":{"document_bytes":16777216,"sheet_cells":100000,"rows_first":2000,"rows_last":500,"rows_between":2000,"halvings":0,"cell_chars":16384,"cell_head_chars":4096},"cells_cut":0,"cells_raw":0,"read":"whole","date_system":"1900"}

{"sheet":"Trigonometry","index":0,"n_rows":43,"n_cols":23,"rows_kept":43,"cut":false,"hidden":false,"merged":[[3,14,4,14],[5,14,6,14],[2,4,3,5],[24,20,24,21],[25,20,25,21],[8,2,8,6],[10,5,10,7],[11,1,11,3],[12,19,12,20],[14,6,14,7],[42,21,49,22],[5,2,6,6],[38,22,38,23],[24,4,25,4],[26,20,26,21],[27,18,27,19],[27,20,27,21]]}
[]
[]
[null,null,null,null,"Unlocked"]
[null,null,null,null,null,null,null,null,null,null,null,null,null,null,"Set Decimal Value Here"]
[]
[null,null,"Trigonometry  Formula          ©Rocketwaveuk",null,null,null,null,null,null,null,null,null,null,null,3]
[]
[]
[null,null,"<<   <<  THESE COLOUR TYPE CELLS NOT  LOCKED   >>   >>"]
[]
[null,null,null,null,null,"Use To Set Sizes For The Sheet Formula"]
[null,"Normal Sin (Rad) Calculations",null,null,null,{"$f":"IF(F14=\"\",F15,F14)","v":5},{"$f":"IF(G14=\"\",F15,G14)","v":4},{"$f":"IF(H14=\"\",F15,H14)","v":6}]
[null,"A =","Sin = Ajc/Hyp",{"$f":"F12/H12","v":0.83333333333333337},null,"Ajacent","Oppersite","HYP",null,null,null,null,null,null,null,null,null,null,null,"Normal Trig Funtions"]
[null,"B =","Sin = Opp/Hyp",{"$f":"G12/H12","v":0.66666666666666663},null,5,4,6]
[null,null,null,null,null,{"$f":"IF(AND(F14>0,AND(H14>0,G14>0)),0,IF(H14=\"\",SQRT((E38*E38)+(H31*H31)),IF(G14=\"\",SQRT((H14*H14)-(F14*F14)),SQRT((H14*H14)-(G14*G14)))))","v":0},"Leave one Value Empty",null,null,null,null,null,null,null,null,null,null,null,null,"SQ of Both Sides","SQ of Opp"]
[null,null,null,null,null,null,null,null,null,null,null,null,null,null,null,null,null,null,null,{"$f":"IF(H14=0,F15*F15,H14*H14)","v":36},{"$f":"IF(F14=0,F15*F15,F14*F14)","v":25}]
[null,"Angle Req","ATAN2 =","Degrees = ","Radians (deg)","SIN(radians)","Deg Sin-1 (radians)",null,null,null,null,null,null,null,null,null,null,null,null,"SQ Root Hyp","SQ of Ajc"]
[null,"A◦ =",{"$f":"ATAN2(G12,F12)","v":0.89605538457134393},{"$f":"DEGREES(C18)","v":51.340191745909912},{"$f":"RADIANS(D18)","v":0.89605538457134404},{"$f":"SIN(E18)","v":0.78086880944303039},{"$f":"DEGREES(ASIN(F18))","v":51.340191745909912},null,null,null,null,null,null,null,null,null,null,null,null,{"$f":"SQRT(T16)","v":6},{"$f":"IF(G14=0,F15*F15,G14*G14)","v":16}]
[null,"B◦ =",{"$f":"ATAN2(F12,G12)","v":0.67474094222355274},{"$f":"DEGREES(C19)","v":38.659808254090095},{"$f":"RADIANS(D19)","v":0.67474094222355274},{"$f":"SIN(E19)","v":0.62469504755442429},{"$f":"DEGREES(ASIN(F19))","v":38.659808254090095}]
[null,null,null,null,null,null,null,null,null,null,null,null,null,null,null,null,null,null,null,"Ajc =","Opp ="]
[null,null,null,null,null,null,null,null,null,null,null,null,null,null,null,null,null,null,null,{"$f":"SQRT((T16)-(U16))","v":3.3166247903553998},{"$f":"SQRT((T16)-(U18))","v":4.4721359549995796}]
[]
[null,null,null,null,null,null,"B◦"]
[]
[null,null,null,null,"Length                 HYP",null,null,null,null,null,null,null,null,null,null,null,null,null,null,"ATAN2(opp,ajc)","Deg(ATAN2(opp,ajc))"]
[null,null,null,null,null,null,null,null,null,null,null,null,null,null,null,null,null,null,"A° =",{"$f":"ATAN2(G14,F14)","v":0.89605538457134393},{"$f":"DEGREES(T26)","v":51.340191745909912}]
[null,null,null,null,{"$f":"ROUND(H12,O6)","v":6},null,null,null,null,null,null,null,null,null,null,null,null,null,"B° =",{"$f":"ATAN2(F14,G14)","v":0.67474094222355274},{"$f":"DEGREES(T27)","v":38.659808254090095}]
[null,null,null,null,null,null,null,null,null,null,null,null,null,null,null,null,null,null,"Total Degrees =",null,{"$f":"SUM(U26:U27)","v":90}]
[]
[null,null,null,null,null,null,null,"Length"]
[null,null,null,null,null,null,null,{"$f":"G12","v":4}]
[]
[]
[]
[]
[null,null,"A◦",null,null,null,{"$f":"\"       C◦\"","v":"C◦"}]
[null,null,null,null,"Length"]
[null,null,null,null,{"$f":"ROUND(F12,O6)","v":5}]
[null,null,null,null,null,null,null,null,null,null,null,null,null,null,null,null,null,null,null,null,null,null,"Pythagoras Theorem"]
[]
[]
[]
[null,null,null,null,null,null,null,null,null,null,null,null,null,null,null,null,null,null,null,null,null,"The Square of side A + The Square of side B will equal the Square of side C      "]